fUSD/lending_fUSD_20241219
["ID","MTS","AMOUNT","RATE_DAILY","PERIOD"]
[346031015,1734639044395,-440.8,0.000249,31]
[346031017,1734639044405,-440.8,0.000249,31]
[346031024,1734639044524,-8870.8399563,0.000249,2]
[346031025,1734639044549,-1000.0,0.000249,2]
[346031026,1734639044558,-1000.0,0.000249,2]
[346031027,1734639044567,-161.8467164,0.000249,4]
[346031028,1734639044577,-1129.0,0.000249,2]
[346031029,1734639044586,-150.0,0.00024901,2]
[346031030,1734639044596,-150.0,0.00024904,2]
[346031031,1734639044607,-150.0,0.00024911,4]
[346031032,1734639044617,-150.0,0.00024918,2]
[346031033,1734639044627,-150.0,0.00024919,2]
[346031034,1734639044637,-150.0,0.00024923,2]
[346031035,1734639044646,-150.0,0.00024926,2]
[346031036,1734639044655,-150.0,0.00024929,2]
[346031037,1734639044664,-150.0,0.0002493,2]
[346031038,1734639044674,-150.0,0.00024931,2]
[346031039,1734639044683,-150.0,0.00024935,2]
[346031040,1734639044692,-150.0,0.00024936,2]
[346031041,1734639044701,-150.0,0.00024947,2]
[346031042,1734639044711,-150.0,0.00024955,2]
[346031043,1734639044720,-150.0,0.00024956,2]
[346031044,1734639044730,-150.0,0.00024957,2]
[346031045,1734639044739,-150.0,0.00024958,2]
[346031046,1734639044748,-150.0,0.00024964,2]
[346031047,1734639044758,-150.0,0.00024964,2]
[346031048,1734639044767,-150.0,0.00024973,2]
[346031049,1734639044777,-150.0,0.00024974,2]
[346031050,1734639044786,-150.0,0.00024979,2]
[346031051,1734639044796,-150.0,0.00024979,2]
[346031052,1734639044805,-150.0,0.00024981,2]
[346031053,1734639044815,-150.0,0.00024982,2]
[346031054,1734639044824,-150.0,0.00024986,4]
[346031055,1734639044833,-150.0,0.00024986,4]
[346031056,1734639044842,-150.0,0.00024986,4]
[346031057,1734639044854,-259.0928616,0.00024986,4]
[346031058,1734639044864,-150.0,0.00024995,2]
[346031059,1734639044878,-150.0,0.00024995,2]
[346031060,1734639044888,-599.75745771,0.00024995,2]
[346031061,1734639044897,-806.47756045,0.00024995,2]
[346031062,1734639044907,-9571.90360436,0.00024998,3]
[346031063,1734639044918,-500.0,0.00024999,4]
[346031064,1734639044929,-432.92301899,0.00024999,4]
[346031065,1734639044938,-500.0,0.00024999,4]
[346031066,1734639044949,-502.28016025,0.00024999,4]
[346031067,1734639044959,-500.0,0.00024999,4]
[346031068,1734639044969,-187.66876685,0.00024999,4]
[346031069,1734639044979,-500.0,0.00024999,4]
[346031070,1734639044988,-500.0,0.00024999,4]
[346031071,1734639044998,-501.20000182,0.00024999,4]
[346031072,1734639045007,-500.0,0.00024999,4]
[346031073,1734639045017,-301.92556596,0.00024999,4]
[346031074,1734639045027,-500.0,0.00024999,4]
[346031075,1734639045036,-500.68430185,0.00024999,4]
[346031076,1734639045045,-500.0,0.00024999,4]
[346031077,1734639045055,-500.0,0.00024999,4]
[346031078,1734639045064,-500.0,0.00024999,4]
[346031079,1734639045073,-500.0,0.00024999,4]
[346031080,1734639045083,-500.0,0.00024999,7]
[346031081,1734639045092,-500.0,0.00024999,4]
[346031082,1734639045106,-500.0,0.00024999,4]
[346031083,1734639045115,-367.58790918,0.00024999,4]
[346031084,1734639045124,-500.0,0.00024999,4]
[346031085,1734639045134,-381.06929681,0.00024999,4]
[346031086,1734639045144,-500.0,0.00024999,4]
[346031087,1734639045153,-1000.0,0.00024999,2]
[346031088,1734639045163,-500.0,0.00024999,4]
[346031089,1734639045171,-500.0,0.00024999,4]
[346031090,1734639045180,-500.0,0.00024999,4]
[346031091,1734639045190,-500.0,0.00024999,4]
[346031092,1734639045199,-188.48,0.00024999,4]
[346031093,1734639045208,-383.54915803,0.00024999,4]
[346031094,1734639045217,-500.0,0.00024999,4]
[346031095,1734639045226,-500.0,0.00024999,4]
[346031096,1734639045235,-500.0,0.00024999,4]
[346031097,1734639045244,-500.0,0.00024999,4]
[346031098,1734639045253,-500.0,0.00024999,4]
[346031099,1734639045262,-500.0,0.00024999,4]
[346031100,1734639045271,-500.0,0.00024999,4]
[346031101,1734639045280,-500.0,0.00024999,4]
[346031102,1734639045290,-500.0,0.00024999,4]
[346031103,1734639045299,-639.20502913,0.00024999,4]
[346031104,1734639045308,-500.0,0.00024999,4]
[346031105,1734639045317,-500.0,0.00024999,4]
[346031106,1734639045327,-500.0,0.00024999,4]
[346031107,1734639045336,-500.0,0.00024999,4]
[346031108,1734639045345,-500.0,0.00024999,4]
[346031109,1734639045357,-619.40008384,0.00024999,4]
[346031110,1734639045367,-500.0,0.00024999,2]
[346031111,1734639045376,-500.0,0.00024999,4]
[346031112,1734639045386,-382.78066275,0.00024999,4]
[346031113,1734639045395,-500.0,0.00024999,4]
[346031114,1734639045404,-500.0,0.00024999,4]
[346031115,1734639045414,-515.37170289,0.00024999,4]
[346031116,1734639045424,-500.0,0.00024999,4]
[346031117,1734639045434,-500.0,0.00024999,4]
[346031118,1734639045444,-500.0,0.00024999,4]
[346031119,1734639045454,-500.0,0.00024999,4]
[346031120,1734639045464,-500.0,0.00024999,4]
[346031121,1734639045474,-500.0,0.00024999,4]
[346031123,1734639045484,-500.0,0.00024999,4]
[346031124,1734639045494,-500.0,0.00024999,4]
[346031125,1734639045504,-500.0,0.00024999,4]
[346031126,1734639045513,-500.0,0.00024999,4]
[346031127,1734639045524,-500.0,0.00024999,4]
[346031128,1734639045533,-500.0,0.00024999,4]
[346031130,1734639045543,-500.0,0.00024999,4]
[346031132,1734639045552,-500.0,0.00024999,4]
[346031133,1734639045561,-243.97974114,0.00024999,4]
[346031134,1734639045570,-500.0,0.00024999,4]
[346031135,1734639045579,-458.85,0.00024999,4]
[346031136,1734639045588,-500.0,0.00024999,4]
[346031138,1734639045600,-500.0,0.00024999,4]
[346031139,1734639045611,-500.0,0.00024999,4]
[346031140,1734639045622,-500.0,0.00024999,4]
[346031141,1734639045631,-500.0,0.00024999,4]
[346031142,1734639045641,-500.0,0.00024999,4]
[346031143,1734639045650,-500.0,0.00024999,4]
[346031144,1734639045660,-500.0,0.00024999,4]
[346031145,1734639045670,-586.7337639,0.00024999,4]
[346031146,1734639045679,-321.52604985,0.00024999,4]
[346031147,1734639045689,-500.0,0.00024999,4]
[346031148,1734639045699,-500.63193873,0.00024999,4]
[346031150,1734639045708,-500.0,0.00024999,4]
[346031151,1734639045717,-601.24,0.00024999,4]
[346031153,1734639045726,-500.0,0.00024999,4]
[346031155,1734639045736,-500.0,0.00024999,4]
[346031156,1734639045745,-500.0,0.00024999,4]
[346031157,1734639045755,-500.0,0.00024999,4]
[346031158,1734639045763,-500.0,0.00024999,4]
[346031159,1734639045773,-500.0,0.00024999,4]
[346031160,1734639045782,-500.0,0.00024999,4]
[346031161,1734639045794,-1000.0,0.00024999,5]
[346031162,1734639045803,-406.11,0.00024999,4]
[346031163,1734639045815,-500.0,0.00024999,4]
[346031164,1734639045825,-500.0,0.00024999,4]
[346031165,1734639045836,-500.0,0.00024999,4]
[346031166,1734639045846,-500.0,0.00024999,4]
[346031167,1734639045860,-416.81139442,0.00024999,4]
[346031168,1734639045869,-500.0,0.00024999,4]
[346031169,1734639045878,-500.0,0.00024999,4]
[346031170,1734639045890,-598.95708828,0.00024999,2]
[346031171,1734639045905,-500.0,0.00024999,4]
[346031172,1734639045919,-500.0,0.00024999,4]
[346031173,1734639045932,-500.0,0.00024999,4]
[346031174,1734639045943,-500.0,0.00024999,2]
[346031175,1734639045956,-500.0,0.00024999,4]
[346031176,1734639045969,-500.0,0.00024999,4]
[346031177,1734639045982,-500.0,0.00024999,4]
[346031178,1734639045994,-500.0,0.00024999,4]
[346031179,1734639046007,-500.0,0.00024999,4]
[346031180,1734639046021,-500.0,0.00024999,4]
[346031181,1734639046033,-500.0,0.00024999,4]
[346031182,1734639046044,-500.0,0.00024999,4]
[346031183,1734639046056,-500.0,0.00024999,4]
[346031184,1734639046070,-500.0,0.00024999,4]
[346031185,1734639046083,-500.0,0.00024999,4]
[346031186,1734639046095,-500.0,0.00024999,4]
[346031187,1734639046111,-500.0,0.00024999,4]
[346031188,1734639046124,-500.0,0.00024999,4]
[346031189,1734639046136,-500.0,0.00024999,4]
[346031190,1734639046149,-239126.67194246,0.00025,3]
[346031191,1734639046373,-3591.68698412,0.00025,3]
[346031201,1734639046538,-406.32,0.00024624,4]
[346031202,1734639046550,-41722.21414721,0.00025,3]
[346031203,1734639046659,-1057.09047979,0.00025,3]
[346031204,1734639046672,-1089.35000365,0.00025,3]
[346031205,1734639046686,-200797.46549804,0.00025,3]
[346031206,1734639046700,-56157.93714678,0.00025,3]
[346031207,1734639046713,-504.148278,0.00025,3]
[346031208,1734639046726,-960.8,0.00025,3]
[346031209,1734639046740,-3866.0,0.00025,3]
[346031210,1734639046955,-8236.81156696,0.00025,3]
[346031211,1734639046997,-1375.35922992,0.00025,3]
[346031212,1734639047050,-626.23377834,0.00025,3]
[346031213,1734639047061,-324.24479939,0.00025,3]
[346031214,1734639047072,-4760.82570073,0.00025,3]
[346031215,1734639047084,-5043.98798247,0.00025,3]
[346031216,1734639047095,-3870.572112,0.00025,3]
[346031217,1734639047118,-1100.0,0.00024784,2]
[346031218,1734639047127,-137.78161,0.00025,3]
[346031219,1734639047139,-957.40000005,0.00025,3]
[346031220,1734639047153,-281.67190977,0.00025,3]
[346031221,1734639047164,-732.97809023,0.00025,3]
[346031222,1734639733049,157.21,0.00010137,2]
[346031314,1734640231915,-300.0,0.00019979,2]
[346031315,1734640231926,-19630.16908113,0.0001998,2]
[346031316,1734640231936,-4676.75427399,0.0002,4]
[346031317,1734640231945,-3559.4,0.000203,2]
[346031318,1734640231955,-500.0,0.00021164,2]
[346031319,1734640231964,-500.0,0.00021164,2]
[346031320,1734640231973,-547.71,0.00021529,2]
[346031321,1734640231983,-420.0,0.00021755,2]
[346031322,1734640231993,-194.309338,0.00021917,4]
[346031323,1734640232003,-206.432187,0.00021917,4]
[346031324,1734640232012,-5080.20218116,0.00022,3]
[346031325,1734640232022,-184.69,0.00022343,2]
[346031326,1734640232032,-2751.0,0.00022365,2]
[346031327,1734640232045,-150.0,0.00022488,4]
[346031328,1734640232057,-178.43351557,0.00022488,4]
[346031329,1734640232068,-150.0,0.00022488,4]
[346031330,1734640232078,-150.0,0.00022488,4]
[346031331,1734640232089,-150.0,0.00022488,4]
[346031332,1734640232099,-163.7,0.00022591,30]
[346031333,1734640232109,-200.0,0.00022625,2]
[346031334,1734640232120,-250.0,0.00022625,2]
[346031335,1734640232130,-1500.0,0.00022635,2]
[346031336,1734640232139,-250.0,0.00022681,2]
[346031337,1734640232150,-206.432187,0.00022739,4]
[346031338,1734640232159,-974.0,0.00023,2]
[346031339,1734640232168,-150.0,0.00023027,2]
[346031340,1734640232178,-250.0,0.00023052,2]
[346031341,1734640232188,-1319.05,0.00023074,2]
[346031342,1734640232197,-804.98,0.00023077,2]
[346031343,1734640232207,-246.32861,0.00023088,7]
[346031344,1734640232219,-1256.51,0.00023103,2]
[346031345,1734640232228,-250.0,0.00023109,2]
[346031346,1734640232238,-159.33,0.00023135,2]
[346031347,1734640232248,-246.32861,0.00023288,7]
[346031348,1734640232257,-150.0,0.00023321,4]
[346031349,1734640232267,-166.81,0.00023344,2]
[346031350,1734640232277,-500.0,0.00023356,2]
[346031351,1734640232288,-1000.0,0.00023383,2]
[346031352,1734640232303,-369.92,0.00023441,2]
[346031353,1734640232315,-23900.0,0.00023447,2]
[346031354,1734640232325,-1586.39,0.0002347,2]
[346031355,1734640232335,-246.32861,0.00023488,7]
[346031356,1734640232344,-1625.051,0.00023488,4]
[346031357,1734640232354,-500.0,0.00023517,2]
[346031358,1734640232363,-155.28,0.00023524,2]
[346031359,1734640232373,-246.32861,0.00023688,7]
[346031360,1734640232383,-587.0,0.0002369,2]
[346031361,1734640232393,-170.1,0.00023718,2]
[346031362,1734640232403,-443.102,0.0002375,2]
[346031363,1734640232413,-547.71,0.00023793,2]
[346031364,1734640232422,-150.72043156,0.00023955,2]
[346031365,1734640232432,-1870.26,0.0002399,2]
[346031366,1734640232442,-1870.26,0.0002399,2]
[346031367,1734640232451,-1870.26,0.0002399,2]
[346031368,1734640232461,-1870.26,0.0002399,2]
[346031369,1734640232470,-1870.26,0.0002399,2]
[346031370,1734640232480,-500.0,0.00023999,2]
[346031371,1734640232489,-500.0,0.00023999,2]
[346031372,1734640232498,-500.0,0.00023999,2]
[346031373,1734640232508,-500.0,0.00023999,2]
[346031374,1734640232518,-220.83575094,0.00023999,2]
[346031375,1734640232527,-500.0,0.00023999,4]
[346031376,1734640232537,-500.0,0.00023999,4]
[346031377,1734640232552,-500.0,0.00023999,4]
[346031378,1734640232561,-10000.0,0.00024,2]
[346031379,1734640232571,-179432.64518854,0.00024,5]
[346031380,1734640232583,-4426.4,0.00024,5]
[346031381,1734640232596,-428.100002,0.00024,5]
[346031383,1734640232608,-1878.28409751,0.00024,5]
[346031385,1734640232619,-11233.22727229,0.00024,5]
[346031388,1734640232630,-23751.0804615,0.00024,5]
[346031390,1734640232645,-10829.51602866,0.00024,5]
[346031392,1734640232657,-4471.84923329,0.00024,5]
[346031394,1734640232668,-959.78,0.00024,5]
[346031397,1734640232679,-1153.152,0.00024,5]
[346031399,1734640232690,-33563.4886252,0.00024,5]
[346031420,1734640237702,287.34,0.00018023,2]
[346031422,1734640237771,-500.84255623,0.00023999,4]
[346031423,1734640237780,-42.71364513,0.00023999,4]
[346031424,1734640237831,-390.25640814,0.00023999,4]
[346031425,1734640237841,-24952.03100446,0.00024,5]
[346031426,1734640237853,-51707.68914254,0.00024,5]
[346031427,1734640237865,-48009.59999997,0.00024,5]
[346031428,1734640237876,-672.672,0.00024,5]
[346031429,1734640237891,-769.94464691,0.00024,5]
[346031430,1734640237947,-9220.11382433,0.00024,5]
[346031431,1734640237959,-113390.89530336,0.00024,5]
[346031432,1734640238059,-83968.84609588,0.00024,5]
[346031433,1734640238072,-17854.6321,0.00024023,2]
[346031434,1734640238081,-1539.26,0.00024055,2]
[346031435,1734640238090,-4663.0092,0.000241,2]
[346031436,1734640238099,-15360.59790993,0.00024123,2]
[346031437,1734640238108,-150.88447422,0.00024137,2]
[346031438,1734640238118,-150.0,0.00024153,4]
[346031439,1734640238128,-961.0,0.00024159,2]
[346031440,1734640238137,-159.791776,0.00024173,2]
[346031441,1734640238147,-154.61,0.00024192,2]
[346031442,1734640238156,-150.0,0.00024192,2]
[346031443,1734640238166,-150.0,0.00024192,2]
[346031444,1734640238176,-151.03,0.00024192,2]
[346031445,1734640238185,-151.72,0.00024192,2]
[346031446,1734640238194,-435.85,0.00024192,2]
[346031447,1734640238203,-375.19,0.000242,2]
[346031448,1734640238212,-100000.0,0.000242,2]
[346031449,1734640238221,-15360.59790986,0.00024209,2]
[346031450,1734640238230,-31545.81419242,0.00024223,2]
[346031451,1734640238239,-157.21,0.00024231,2]
[346031452,1734640238249,-500.0,0.00024273,4]
[346031453,1734640238258,-500.0,0.00024273,4]
[346031454,1734640238268,-294.66337187,0.00024273,4]
[346031455,1734640238277,-15360.59790986,0.00024296,2]
[346031456,1734640238287,-10032.00477065,0.000243,14]
[346031458,1734640238299,-24968.52890299,0.0002438,2]
[346031460,1734640238312,-6831.24619366,0.0002438,2]
[346031462,1734640238323,-252.7263776,0.0002438,2]
[346031464,1734640238333,-1003.0,0.0002438,2]
[346031466,1734640238346,-3208.63698202,0.0002438,2]
[346031468,1734640238355,-1586.60346798,0.00024382,2]
[346031469,1734640238366,-282.811,0.00024382,2]
[346031470,1734640238378,-3554.7251855,0.00024382,2]
[346031472,1734640238389,-9936.45825638,0.00024382,2]
[346031474,1734640238399,-264.8778,0.00024466,2]
[346031476,1734640238408,-15360.59790986,0.00024468,2]
[346031478,1734640238418,-2110.0,0.000245,2]
[346031480,1734640238427,-5331.06603376,0.000245,2]
[346031481,1734640238437,-712.1777373,0.000245,2]
[346031482,1734640238446,-218.9015,0.00024508,2]
[346031485,1734640238456,-501.2242,0.00024523,2]
[346031487,1734640238466,-711.109,0.00024523,2]
[346031489,1734640238475,-500.0,0.00024524,2]
[346031491,1734640238484,-500.0,0.00024547,4]
[346031492,1734640238493,-500.0,0.00024547,4]
[346031493,1734640238502,-2437.21888613,0.00024555,2]
[346031498,1734640239989,-275.35516359,0.00023999,4]
[346031499,1734640240000,-224.64483641,0.00023999,4]
[346031500,1734640240010,-643.73,0.00024273,4]
[346031501,1734640240020,-12923.37902373,0.00024555,2]
[346031502,1734640240031,-153.0,0.00024585,2]
[346031503,1734640240040,-10055.24613986,0.000246,2]
[346031504,1734640240054,-600.60057457,0.000246,2]
[346031505,1734640240065,-2315.9462,0.000246,2]
[346031506,1734640240080,-483.03414,0.000246,2]
[346031507,1734640240108,-478.5,0.000246,2]
[346031508,1734640240119,-4561.27062499,0.000246,2]
[346031509,1734640240166,-2313.13486737,0.000246,2]
[346031510,1734640240177,-4599.75813045,0.000246,2]
[346031511,1734640240188,-453.8148193,0.000246,2]
[346031512,1734640240200,-1492.57971705,0.000246,2]
[346031513,1734640240209,-1000.0,0.000246,2]
[346031514,1734640240218,-500.0,0.00024622,4]
[346031515,1734640240227,-500.0,0.00024622,4]
[346031516,1734640240236,-500.0,0.00024622,4]
[346031517,1734640240245,-500.0,0.00024622,4]
[346031518,1734640240254,-500.0,0.00024622,4]
[346031519,1734640240263,-500.0,0.00024622,4]
[346031520,1734640240272,-500.0,0.00024622,4]
[346031522,1734640240281,-500.0,0.00024622,4]
[346031523,1734640240290,-500.0,0.00024622,4]
[346031524,1734640240304,-500.0,0.00024622,4]
[346031525,1734640240314,-1309.66244192,0.00024622,4]
[346031526,1734640240330,-310.24755808,0.00024622,4]
[346031528,1734640240339,-29.14244192,0.00024622,4]
[346031564,1734640242970,-500.0,0.00023999,4]
[346031565,1734640242980,-500.0,0.00023999,4]
[346031566,1734640242990,-500.0,0.00023999,4]
[346031567,1734640242999,-500.0,0.00024273,4]
[346031568,1734640243009,-470.85755808,0.00024622,4]
[346031569,1734640243018,-500.0,0.00024622,4]
[346031570,1734640243028,-500.0,0.00024622,4]
[346031571,1734640243038,-500.0,0.00024622,4]
[346031572,1734640243050,-500.0,0.00024622,4]
[346031573,1734640243059,-500.0,0.00024622,4]
[346031574,1734640243068,-500.0,0.00024622,4]
[346031575,1734640243078,-500.0,0.00024622,4]
[346031576,1734640243089,-500.0,0.00024622,4]
[346031577,1734640243098,-500.0,0.00024622,4]
[346031578,1734640243107,-500.0,0.00024622,4]
[346031579,1734640243118,-500.0,0.00024622,4]
[346031580,1734640243128,-500.0,0.00024622,4]
[346031581,1734640243138,-500.0,0.00024622,4]
[346031582,1734640243147,-500.0,0.00024622,4]
[346031583,1734640243156,-668.75271923,0.00024622,2]
[346031584,1734640243166,-500.0,0.00024623,4]
[346031585,1734640243176,-500.0,0.00024623,4]
[346031586,1734640243186,-500.0,0.00024623,4]
[346031587,1734640243196,-500.0,0.00024623,4]
[346031588,1734640243206,-500.0,0.00024623,4]
[346031589,1734640243215,-541.49564654,0.00024623,4]
[346031590,1734640243225,-500.0,0.00024623,4]
[346031591,1734640243235,-382.78066275,0.00024623,4]
[346031592,1734640243244,-500.0,0.00024623,4]
[346031593,1734640243253,-500.0,0.00024623,4]
[346031594,1734640243264,-500.0,0.00024623,4]
[346031595,1734640243273,-500.0,0.00024623,4]
[346031596,1734640243283,-500.0,0.00024623,4]
[346031597,1734640243299,-500.0,0.00024623,4]
[346031598,1734640243309,-500.0,0.00024623,4]
[346031599,1734640243319,-500.0,0.00024623,4]
[346031600,1734640243328,-500.0,0.00024623,4]
[346031601,1734640243338,-500.0,0.00024623,4]
[346031602,1734640243347,-500.0,0.00024623,4]
[346031603,1734640243356,-458.85,0.00024623,4]
[346031604,1734640243366,-500.0,0.00024623,4]
[346031605,1734640243375,-500.0,0.00024623,4]
[346031606,1734640243385,-500.0,0.00024623,4]
[346031607,1734640243395,-601.24,0.00024623,4]
[346031608,1734640243404,-500.0,0.00024623,4]
[346031609,1734640243413,-500.0,0.00024623,4]
[346031610,1734640243423,-500.0,0.00024623,4]
[346031611,1734640243432,-1000.0,0.00024623,5]
[346031612,1734640243441,-500.0,0.00024623,4]
[346031613,1734640243451,-500.0,0.00024623,4]
[346031614,1734640243459,-500.0,0.00024623,4]
[346031615,1734640243469,-140.77716768,0.00024623,4]
[346031616,1734640243481,-359.22283232,0.00024623,4]
[346031617,1734640243492,-500.0,0.00024623,2]
[346031618,1734640243501,-500.0,0.00024623,4]
[346031619,1734640243509,-598.95708828,0.00024623,2]
[346031620,1734640243519,-500.0,0.00024623,4]
[346031621,1734640243528,-500.0,0.00024623,4]
[346031622,1734640243538,-500.0,0.00024623,4]
[346031623,1734640243550,-500.0,0.00024623,4]
[346031624,1734640243559,-500.0,0.00024623,4]
[346031626,1734640243569,-500.0,0.00024623,4]
[346031627,1734640243578,-500.0,0.00024623,4]
[346031628,1734640243587,-500.0,0.00024623,4]
[346031629,1734640243595,-500.0,0.00024623,4]
[346031630,1734640243604,-500.0,0.00024623,4]
[346031631,1734640243614,-500.0,0.00024623,4]
[346031632,1734640243622,-500.0,0.00024623,4]
[346031633,1734640243632,-500.0,0.00024623,4]
[346031634,1734640243641,-500.0,0.00024623,4]
[346031635,1734640243650,-607.6,0.00024623,4]
[346031637,1734640243659,-500.0,0.00024623,4]
[346031638,1734640243668,-403.6998074,0.00024623,4]
[346031639,1734640243679,-96.3001926,0.00024623,4]
[346031640,1734640243688,-187.68727905,0.00024623,4]
[346031641,1734640243699,-312.31272095,0.00024623,4]
[346031642,1734640243709,-500.0,0.00024623,4]
[346031643,1734640243719,-500.0,0.00024623,4]
[346031644,1734640243728,-500.0,0.00024623,4]
[346031645,1734640243738,-500.0,0.00024623,4]
[346031646,1734640243747,-500.0,0.00024623,4]
[346031647,1734640243756,-194.29709252,0.00024624,4]
[346031648,1734640243775,-307.90370123,0.00024624,4]
[346031650,1734640243784,-500.0,0.00024624,4]
[346031651,1734640243793,-396.86468692,0.00024624,4]
[346031652,1734640243807,-531.63301534,0.00024624,4]
[346031653,1734640243816,-306.02245268,0.00024624,4]
[346031654,1734640243825,-506.43196932,0.00024624,4]
[346031655,1734640243834,-500.0,0.00024624,4]
[346031656,1734640243843,-523.73645135,0.00024624,4]
[346031657,1734640243852,-500.0,0.00024624,4]
[346031659,1734640243861,-500.0,0.00024624,4]
[346031660,1734640243870,-500.0,0.00024624,4]
[346031662,1734640243880,-354.79410068,0.00024624,4]
[346031663,1734640243889,-500.0,0.00024624,4]
[346031664,1734640243898,-500.0,0.00024624,4]
[346031665,1734640243907,-500.0,0.00024624,4]
[346031666,1734640243916,-385.43810536,0.00024624,4]
[346031667,1734640243925,-500.0,0.00024624,4]
[346031668,1734640243934,-586.7337639,0.00024624,4]
[346031669,1734640243943,-500.0,0.00024624,4]
[346031670,1734640243953,-500.0,0.00024624,4]
[346031671,1734640243962,-500.0,0.00024624,4]
[346031672,1734640243971,-500.0,0.00024624,4]
[346031673,1734640243981,-500.0,0.00024624,4]
[346031674,1734640243991,-500.0,0.00024624,4]
[346031675,1734640244000,-500.0,0.00024624,4]
[346031676,1734640244010,-500.0,0.00024624,4]
[346031677,1734640244019,-500.0,0.00024624,4]
[346031678,1734640244029,-500.0,0.00024624,4]
[346031679,1734640244039,-500.0,0.00024624,4]
[346031680,1734640244052,-500.0,0.00024624,4]
[346031681,1734640244061,-500.0,0.00024624,4]
[346031682,1734640244070,-500.0,0.00024624,4]
[346031683,1734640244080,-321.52604985,0.00024624,4]
[346031684,1734640244089,-500.63193873,0.00024624,4]
[346031685,1734640244098,-500.0,0.00024624,4]
[346031686,1734640244107,-500.0,0.00024624,4]
[346031687,1734640244116,-416.81139442,0.00024624,4]
[346031688,1734640244125,-406.11,0.00024624,4]
[346031689,1734640244135,-500.0,0.00024624,4]
[346031690,1734640244144,-776.92724785,0.00024641,2]
[346031691,1734640244156,-433.37073828,0.00024641,2]
[346031692,1734640244176,-452.77676037,0.00023999,4]
[346031693,1734640244188,-47.22323963,0.00023999,4]
[346031694,1734640244198,-2071.0930899,0.00024641,2]
[346031695,1734640244210,-851.95502126,0.00024641,2]
[346031696,1734640244222,-434.95462315,0.00024641,2]
[346031697,1734640244256,-500.0,0.00024547,4]
[346031698,1734640244266,-35.9424,0.00024641,2]
[346031699,1734640244280,-1941.28,0.00024641,2]
[346031700,1734640244293,-1918.76616689,0.00024641,2]
[346031701,1734640244313,-4804.8,0.00024641,2]
[346031702,1734640244325,-380.04230006,0.00024641,2]
[346031703,1734640244344,-500.0,0.00024273,4]
[346031704,1734640244354,-1711.46632247,0.00024641,2]
[346031705,1734640244363,-150.0,0.00024658,2]
[346031706,1734640244372,-501.19653793,0.00024673,2]
[346031707,1734640244384,-333.56746404,0.00024673,2]
[346031708,1734640244393,-500.44414763,0.00024673,2]
[346031709,1734640244403,-509.78329221,0.00024673,2]
[346031710,1734640244413,-159.99425748,0.00024673,2]
[346031711,1734640244422,-500.0,0.00024687,4]
[346031712,1734640244432,-500.0,0.00024687,4]
[346031713,1734640244442,-500.0,0.00024687,4]
[346031714,1734640244451,-500.0,0.00024687,4]
[346031715,1734640244460,-500.0,0.00024687,4]
[346031716,1734640244470,-500.0,0.00024687,4]
[346031717,1734640244479,-500.0,0.00024687,4]
[346031718,1734640244488,-530.76,0.00024687,4]
[346031719,1734640244498,-741.43,0.00024687,4]
[346031720,1734640244507,-500.0,0.00024687,4]
[346031721,1734640244516,-500.0,0.00024687,4]